bitfinex/quotes_ETHUSD_20250322
["timestamp","ask_amount","ask_price","bid_price","bid_amount"]
[1742627332654,5.02186,1991.3,1991.0,37.15099228]
[1742627333986,5.02186,1991.3,1991.0,44.47655033]
[1742627335289,3.10219805,1991.6,1991.2,5.02204]
[1742627335591,5.02152,1991.5,1991.1,8.14709805]
[1742627335792,5.02159,1991.4,1991.1,8.14709805]
[1742627337459,10.04337,1991.4,1991.1,0.8219]
[1742627338188,5.02159,1991.4,1991.1,0.8219]
[1742627339488,10.04341,1991.4,1991.1,0.8219]
[1742627339657,10.04329,1991.4,1991.1,0.8219]
[1742627339856,5.02159,1991.4,1991.1,0.8219]
[1742627340597,5.02186,1991.3,1991.0,36.18343]
[1742627341572,5.02171,1991.4,1991.0,36.18343]
[1742627342384,5.02185,1991.3,1991.0,36.18343]
[1742627342887,5.02185,1991.3,1991.0,31.161]
[1742627345865,5.02185,1991.3,1991.0,33.46399805]
[1742627346065,5.02185,1991.3,1991.0,37.89713686]
[1742627347993,10.04389,1991.3,1991.0,37.89713686]
[1742627348167,5.0221,1991.2,1991.0,33.46399805]
[1742627348570,5.02185,1991.3,1991.0,31.161]
[1742627349198,5.02185,1991.3,1991.0,4.613]
[1742627349386,10.04388,1991.3,1991.0,4.613]
[1742627350875,5.02185,1991.3,1991.0,4.613]
[1742627351407,5.02185,1991.3,1991.0,6.91599805]
[1742627353001,2.30299805,1991.3,1990.9,4.614]
[1742627353205,5.0225,1991.1,1990.9,4.614]
[1742627353985,5.0225,1991.1,1990.8,28.85499805]
[1742627354185,5.0226,1991.0,1990.8,31.166]
[1742627354389,5.0225,1991.1,1990.8,31.166]
[1742627354390,5.02241,1991.1,1990.8,31.166]
[1742627354575,5.02267,1991.0,1990.8,31.166]
[1742627354771,5.0224,1991.1,1990.8,31.166]
[1742627355308,5.0227,1991.0,1990.8,31.166]
[1742627355507,5.7996,1991.0,1990.8,31.166]
[1742627356614,5.02285,1990.9,1990.8,31.166]
[1742627356814,5.7996,1991.0,1990.8,31.166]
[1742627359012,5.0227,1991.0,1990.8,31.166]
[1742627361083,5.02236,1991.1,1990.8,39.27317805]
[1742627363522,5.02236,1991.1,1990.8,36.97018]
[1742627363826,5.02236,1991.1,1990.8,31.9471]
[1742627365420,10.0449,1991.1,1990.8,31.9471]
[1742627365628,5.799,1991.2,1990.8,39.27298805]
[1742627365828,10.82127,1991.2,1990.8,39.27298805]
[1742627366440,10.82127,1991.2,1990.9,0.29549403]
[1742627366791,5.02235,1991.1,1990.9,0.29549403]
[1742627376441,5.02202,1991.3,1990.9,7.62131208]
[1742627376657,5.02213,1991.2,1990.9,7.62131208]
[1742627376842,5.02202,1991.3,1990.9,12.64404208]
[1742627377001,5.02237,1991.1,1990.9,0.29549403]
[1742627378140,5.02217,1991.2,1990.9,0.29549403]
[1742627378529,10.04446,1991.2,1990.9,0.29549403]
[1742627379745,5.02217,1991.2,1990.9,0.29549403]
[1742627380445,10.04446,1991.2,1990.9,0.29549403]
[1742627381944,5.02236,1991.1,1990.9,0.29549403]
[1742627386347,6.856413,1991.1,1990.9,0.29549403]
[1742627386651,5.0226,1991.0,1990.8,4.614]
[1742627387142,5.0226,1991.0,1990.9,0.29585786]
[1742627389257,5.0224,1991.1,1990.9,0.29585786]
[1742627391349,10.04495,1991.1,1990.9,0.29585786]
[1742627391548,6.027095,1991.0,1990.9,0.29585786]
[1742627394440,6.825595,1991.0,1990.9,0.29585786]
[1742627394621,5.02292,1990.9,1990.6,26.556]
[1742627394823,5.02315,1990.8,1990.6,26.556]
[1742627395133,5.02335,1990.7,1990.6,26.556]
[1742627395319,7.32634805,1990.7,1990.6,26.556]
[1742627395519,8.64114786,1990.7,1990.6,26.556]
[1742627395742,5.0237,1990.6,1990.3,4.614]
[1742627396555,10.04753,1990.6,1990.3,4.614]
[1742627396853,5.02387,1990.5,1990.3,4.614]
[1742627398234,5.02367,1990.6,1990.4,0.29761029]
[1742627399136,10.04748,1990.6,1990.4,0.29761029]
[1742627399434,11.28252781,1990.6,1990.4,0.29761029]
[1742627399837,5.02386,1990.5,1990.4,0.29761029]
[1742627400228,5.02386,1990.5,1990.2,5.4274]
[1742627400428,5.02386,1990.5,1990.4,0.29761029]
[1742627400639,5.02386,1990.5,1990.3,0.29782434]
[1742627400840,5.02386,1990.5,1990.4,0.29761029]
[1742627401256,5.02386,1990.5,1990.2,5.4274]
[1742627401427,5.02386,1990.5,1990.4,0.29761029]
[1742627401625,5.02386,1990.5,1990.3,0.29782434]
[1742627401930,5.02386,1990.5,1990.4,0.29883887]
[1742627402131,5.02386,1990.5,1990.2,5.4274]
[1742627402458,5.02386,1990.5,1990.4,0.29883887]
[1742627402656,5.02386,1990.5,1990.3,0.29905293]
[1742627402855,5.02386,1990.5,1990.4,0.29883887]
[1742627403552,5.02386,1990.5,1990.2,5.4274]
[1742627403728,5.02386,1990.5,1990.4,0.29883887]
[1742627403933,5.02386,1990.5,1990.3,0.29905293]
[1742627404163,5.02386,1990.5,1990.4,0.29883887]
[1742627404361,5.02386,1990.5,1990.2,5.4274]
[1742627404664,5.02386,1990.5,1990.4,0.29883887]
[1742627404829,5.02386,1990.5,1990.3,0.29905293]
[1742627405031,5.02386,1990.5,1990.4,0.29883887]
[1742627405233,6.23193778,1990.5,1990.4,0.29883887]
[1742627405465,6.23193778,1990.5,1990.2,5.4274]
[1742627405652,5.02386,1990.5,1990.4,0.29883887]
[1742627405855,5.02386,1990.5,1990.3,0.29905293]
[1742627406057,5.02386,1990.5,1990.4,0.29883887]
[1742627406452,5.02386,1990.5,1990.2,7.73039805]
[1742627406653,5.02386,1990.5,1990.4,0.29883887]
[1742627406858,5.02386,1990.5,1990.3,0.29905293]
[1742627407062,5.02386,1990.5,1990.4,0.29883887]
[1742627407440,5.02386,1990.5,1990.2,7.73039805]
[1742627407672,5.02386,1990.5,1990.4,0.29883887]
[1742627407878,5.02386,1990.5,1990.3,0.29905293]
[1742627408043,5.02386,1990.5,1990.4,0.29883887]
[1742627408762,5.02386,1990.5,1990.2,5.4274]
[1742627409071,5.02386,1990.5,1990.4,0.29883887]
[1742627409238,5.02386,1990.5,1990.3,0.29905293]
[1742627409438,5.02386,1990.5,1990.4,0.29883887]
[1742627409975,5.02386,1990.5,1990.2,5.4274]
[1742627410179,5.02386,1990.5,1990.4,0.29883887]
[1742627410381,5.02386,1990.5,1990.3,0.29905293]
[1742627410688,5.02386,1990.5,1990.2,4.615]
[1742627410851,5.02386,1990.5,1990.4,0.29883887]
[1742627411044,5.02386,1990.5,1990.3,0.29905293]
[1742627411245,5.02386,1990.5,1990.4,0.29883887]
[1742627411645,5.02386,1990.5,1990.2,6.91799805]
[1742627411968,5.02386,1990.5,1990.3,0.29905293]
[1742627415583,0.7727,1990.4,1990.3,0.29905293]
[1742627415784,0.7727,1990.4,1990.2,4.616]
[1742627415992,0.7727,1990.4,1990.3,0.29923501]
[1742627417376,5.02386,1990.5,1990.3,0.29923501]
[1742627420758,10.0479,1990.5,1990.3,0.29923501]
[1742627420964,5.02386,1990.5,1990.3,0.29923501]
[1742627428203,5.02411,1990.4,1990.3,0.29923501]
[1742627429589,5.78051,1990.4,1990.3,0.29923501]
[1742627429795,6.282921,1990.4,1990.3,0.29923501]
[1742627430171,11.307231,1990.4,1990.1,0.47145689]
[1742627430373,6.282921,1990.4,1990.3,0.30057775]
[1742627430597,11.307231,1990.4,1990.2,0.30079183]
[1742627430894,11.307231,1990.4,1990.3,0.30057775]
[1742627431107,11.307231,1990.4,1990.1,0.47145689]
[1742627431474,5.02436,1990.3,1990.2,0.43017776]
[1742627431697,5.02436,1990.3,1990.0,37.16199228]
[1742627431892,5.02436,1990.3,1990.1,0.43039836]
[1742627433505,6.33514981,1990.3,1990.1,0.43039836]
[1742627434210,5.02436,1990.3,1990.1,0.43039836]
[1742627435309,10.04891,1990.3,1990.1,0.43039836]
[1742627435487,5.02436,1990.3,1990.1,0.43039836]
[1742627435893,10.0489,1990.3,1990.1,0.43039836]
[1742627436099,5.02462,1990.2,1990.1,0.43039836]
[1742627436714,9.08891605,1990.2,1990.1,0.43039836]
[1742627439511,8.33251605,1990.2,1990.1,0.43039836]
[1742627439696,5.02521,1990.0,1989.8,4.616]
[1742627439899,5.02521,1990.0,1989.9,0.43106728]
[1742627440211,5.02521,1990.0,1989.8,4.616]
[1742627440411,5.02521,1990.0,1989.9,0.43106728]
[1742627440795,5.02521,1990.0,1989.8,4.616]
[1742627440996,5.02521,1990.0,1989.9,0.43106728]
[1742627441327,5.02521,1990.0,1989.8,4.616]
[1742627441619,5.02521,1990.0,1989.9,0.43106728]
[1742627442114,5.02521,1990.0,1989.9,0.43216019]
[1742627442312,5.02489,1990.1,1989.8,4.616]
[1742627442519,10.04994,1990.1,1989.9,0.43216019]
[1742627442690,10.04994,1990.1,1989.8,4.616]
[1742627442888,10.04994,1990.1,1989.9,0.43216019]
[1742627443218,10.04994,1990.1,1989.8,4.616]
[1742627443418,10.04994,1990.1,1990.0,0.43193955]
[1742627443606,10.04994,1990.1,1989.9,0.43216019]
[1742627443607,11.2317638,1990.1,1989.9,0.43216019]
[1742627443782,11.2317638,1990.1,1990.0,0.43193955]
[1742627444818,11.2317638,1990.1,1989.8,4.616]
[1742627444983,5.02489,1990.1,1990.0,0.43193955]
[1742627445197,10.04994,1990.1,1989.9,0.43216019]
[1742627445397,10.04994,1990.1,1990.0,0.43193955]
[1742627445727,10.04994,1990.1,1989.8,4.616]
[1742627445896,10.04994,1990.1,1989.9,0.43216019]
[1742627446097,10.04994,1990.1,1989.8,4.616]
[1742627446297,5.02519,1990.0,1989.9,0.43216019]
[1742627446497,5.02519,1990.0,1989.8,4.616]
[1742627446709,5.02519,1990.0,1989.9,0.43216019]
[1742627446904,5.02519,1990.0,1989.8,4.616]
[1742627447199,5.02519,1990.0,1989.9,0.43216019]
[1742627447625,5.02519,1990.0,1989.8,4.616]
[1742627447825,5.02519,1990.0,1989.9,0.43216019]
[1742627448125,5.02519,1990.0,1989.8,4.616]
[1742627448326,5.02519,1990.0,1989.9,0.43216019]
[1742627448530,5.02519,1990.0,1989.8,4.616]
[1742627448833,5.02519,1990.0,1989.9,0.43216019]
[1742627449130,5.02519,1990.0,1989.8,4.616]
[1742627449329,5.02519,1990.0,1989.9,0.43216019]
[1742627449530,5.02519,1990.0,1989.8,4.616]
[1742627449730,5.02519,1990.0,1989.9,0.43216019]
[1742627449929,5.02519,1990.0,1989.8,4.616]
[1742627450131,5.02496,1990.1,1989.9,0.43216019]
[1742627450336,5.02496,1990.1,1989.8,3.08719805]
[1742627450527,5.02496,1990.1,1989.9,0.43216019]
[1742627451600,5.02496,1990.1,1989.8,3.08719805]
[1742627451934,5.02447,1990.3,1989.9,5.45744019]
[1742627452136,5.02472,1990.2,1989.9,2.73515824]
[1742627452334,5.02447,1990.3,1990.0,0.8176]
[1742627452637,5.02445,1990.3,1990.1,0.43171893]
[1742627452936,10.04901,1990.3,1990.1,0.43171893]
[1742627453116,5.02462,1990.2,1990.1,0.43171893]
[1742627453707,5.02462,1990.2,1990.0,0.74931893]
[1742627453907,5.02462,1990.2,1990.1,0.39574235]
[1742627454221,6.029527,1990.2,1990.1,0.39574235]
[1742627454546,5.02506,1990.1,1989.7,33.89884805]
[1742627454717,10.05017,1990.1,1989.8,0.39640428]
[1742627456644,5.02515,1990.0,1989.8,0.39640428]
[1742627458746,10.05045,1990.0,1989.8,0.39640428]
[1742627459614,5.02537,1989.9,1989.8,0.39640428]
[1742627463725,5.02537,1989.9,1989.6,7.73759805]
[1742627463924,5.02537,1989.9,1989.7,0.39746749]
[1742627464321,5.02563,1989.8,1989.7,0.39746749]
[1742627465446,5.02563,1989.8,1989.5,12.76396805]
[1742627465749,5.02563,1989.8,1989.6,0.39782484]
[1742627467856,5.84235,1990.0,1989.6,0.39782484]
[1742627467857,5.02542,1989.9,1989.6,2.70082289]
[1742627468226,5.02542,1989.9,1989.7,2.30299805]
[1742627468448,5.02542,1989.9,1989.7,3.12609805]
[1742627468753,5.02497,1990.1,1989.8,2.70049537]
[1742627469141,5.02497,1990.1,1989.8,0.39749732]
[1742627469853,5.02529,1990.0,1989.8,0.39749732]
[1742627470059,5.02537,1989.9,1989.8,0.39749732]
[1742627470827,5.0252,1990.0,1989.7,2.30299805]
[1742627471049,5.0252,1990.0,1989.8,0.39756564]
[1742627474862,1.2893777,1990.1,1989.8,0.39756564]
[1742627475067,6.3143677,1990.1,1989.8,0.39756564]
[1742627475747,5.02499,1990.1,1989.8,0.39756564]
[1742627476276,5.02499,1990.1,1989.8,2.70056369]
[1742627476444,5.02499,1990.1,1989.8,5.42318564]
[1742627477672,5.02513,1990.0,1989.8,0.39756564]
[1742627481472,5.02537,1989.9,1989.8,0.39756564]
[1742627481840,5.02537,1989.9,1989.6,2.30299805]
[1742627482071,5.02537,1989.9,1989.8,0.39756564]
[1742627482270,5.02537,1989.9,1989.7,0.39778633]
[1742627482271,6.11201,1989.9,1989.7,0.39778633]
[1742627482442,6.11201,1989.9,1989.8,0.39742895]
[1742627483140,6.11201,1989.9,1989.5,12.76944805]
[1742627483340,5.02537,1989.9,1989.6,0.39787035]
[1742627485147,5.02537,1989.9,1989.6,2.7008684]
[1742627485348,5.02513,1990.0,1989.6,7.7269784]
[1742627485746,10.05043,1990.0,1989.6,7.7269784]
[1742627486054,10.05037,1990.0,1989.6,7.7269784]
[1742627486246,11.136997,1990.0,1989.6,7.7269784]
[1742627487378,6.111757,1990.0,1989.6,7.7269784]
[1742627488475,11.137097,1990.0,1989.6,7.7269784]
[1742627489095,5.02539,1989.9,1989.6,7.7269784]
[1742627489692,5.02518,1990.0,1989.6,7.7269784]
[1742627489888,5.02518,1990.0,1989.7,2.30299805]
[1742627490224,5.02518,1990.0,1989.8,0.39742895]
[1742627490421,6.111777,1990.0,1989.8,0.39742895]
[1742627492210,6.111777,1990.0,1989.9,0.39720829]
[1742627492577,6.111777,1990.0,1989.6,12.35498805]
[1742627492805,5.02518,1990.0,1989.7,0.39764964]
[1742627494429,5.02518,1990.0,1989.7,2.70064769]
[1742627494779,5.02518,1990.0,1989.8,2.30299805]
[1742627494984,5.02518,1990.0,1989.9,0.39711718]
[1742627495184,5.02518,1990.0,1989.7,3.11759805]
[1742627495384,5.02518,1990.0,1989.8,0.39733785]
[1742627506127,6.111777,1990.0,1989.8,0.39733785]
[1742627517035,5.02476,1990.2,1989.8,2.7003359]
[1742627517236,5.02476,1990.2,1989.8,7.7258259]
[1742627518357,5.02493,1990.1,1989.8,7.7258259]
[1742627518866,5.02476,1990.2,1989.8,2.7003359]
[1742627519037,11.132723,1990.2,1989.8,2.7003359]
[1742627519559,11.132723,1990.2,1989.8,7.7258759]
[1742627521230,6.107873,1990.2,1989.8,7.7258759]
[1742627521451,11.132663,1990.2,1989.8,7.7258759]
[1742627523765,5.02488,1990.1,1989.8,7.7258759]
[1742627524059,6.107773,1990.2,1989.8,7.7258759]
[1742627524259,11.132573,1990.2,1989.8,7.7258759]
[1742627526269,6.107773,1990.2,1989.8,7.7258759]
[1742627527567,6.107773,1990.2,1989.8,12.7513659]
[1742627527752,6.107773,1990.2,1989.8,7.7258259]
[1742627528161,11.132563,1990.2,1989.8,7.7258259]
[1742627528362,11.132573,1990.2,1989.8,7.7258259]
[1742627528535,6.107773,1990.2,1989.8,7.7258259]
[1742627528744,11.132593,1990.2,1989.8,7.7258259]
[1742627531497,11.132583,1990.2,1989.8,7.7258259]
[1742627531683,1.1132583,1990.1,1989.8,7.7258259]
[1742627531978,10.04944,1990.2,1989.8,7.7258259]
[1742627532576,5.02463,1990.2,1989.8,7.7258259]
[1742627532982,10.04942,1990.2,1989.8,7.7258259]
[1742627533275,5.02463,1990.2,1989.8,7.7258259]
[1742627534578,5.02463,1990.2,1989.9,0.806]
[1742627534750,6.107762,1990.2,1989.9,0.806]
[1742627534956,11.132582,1990.2,1990.0,0.39682826]
[1742627537686,5.02487,1990.1,1990.0,0.39682826]
[1742627540092,5.79247,1990.1,1990.0,0.39682826]
[1742627540458,10.81755,1990.1,1989.7,2.30299805]
[1742627540693,12.0076182,1990.1,1990.0,0.39671439]
[1742627540895,12.0076182,1990.1,1989.7,2.30299805]
[1742627540896,5.02514,1990.0,1989.7,2.30299805]
[1742627541184,10.05048,1990.0,1989.7,2.30299805]
[1742627541384,10.05048,1990.0,1989.6,8.13496805]
[1742627541890,10.05048,1990.0,1989.7,2.30299805]
[1742627543194,5.02514,1990.0,1989.7,2.30299805]
[1742627543999,5.02514,1990.0,1989.8,0.3972468]
[1742627556198,6.9827382,1990.1,1989.8,2.70024485]
[1742627556497,12.0077882,1990.1,1989.8,2.70024485]
[1742627557023,1.083132,1990.2,1989.8,7.72584485]
[1742627557024,6.107852,1990.2,1989.8,7.72584485]
[1742627557224,10.04951,1990.2,1989.8,8.49194485]
[1742627557408,5.02472,1990.2,1989.8,8.49194485]
[1742627558114,5.82399,1990.3,1989.8,8.49194485]
[1742627558426,5.02474,1990.2,1989.8,8.49194485]
[1742627558599,10.04954,1990.2,1989.8,8.49194485]
[1742627558798,5.02496,1990.1,1989.8,8.49194485]
[1742627561649,5.02496,1990.1,1989.8,3.46634485]
[1742627561804,6.02993,1990.1,1989.8,1.1633468]
[1742627563632,5.02496,1990.1,1989.8,3.46634485]
[1742627565434,5.02496,1990.1,1989.8,1.1633468]
[1742627568843,5.02496,1990.1,1989.8,6.1889668]
[1742627569542,5.02496,1990.1,1989.8,1.1633468]
[1742627570525,5.02496,1990.1,1989.8,6.1889368]
[1742627570909,5.02463,1990.2,1989.8,13.51738485]
[1742627571115,6.02009939,1990.2,1989.8,8.49179485]
[1742627571454,6.02009939,1990.2,1989.8,13.51726485]
[1742627571654,6.02009939,1990.2,1989.8,8.49179485]
[1742627573163,11.04489939,1990.2,1989.8,8.49179485]
[1742627573350,5.02488,1990.1,1989.8,8.49179485]
[1742627576756,5.02488,1990.1,1989.8,3.46634485]
[1742627578030,5.02488,1990.1,1989.8,8.49193485]
[1742627579168,5.02463,1990.2,1989.9,5.02534]
[1742627579333,10.84853,1990.3,1989.9,7.72527301]
[1742627579662,12.843393,1990.3,1989.9,7.72527301]
[1742627579855,4.994853,1990.3,1990.0,5.8016]
[1742627580179,5.02434,1990.4,1990.1,0.3964937]
[1742627580394,5.02392,1990.5,1990.2,2.30299805]
[1742627580655,5.02363,1990.6,1990.2,2.30299805]
[1742627580656,5.02375,1990.6,1990.3,0.7765]
[1742627580862,5.02375,1990.6,1990.3,1.17250697]
[1742627581451,5.02386,1990.5,1990.3,1.17250697]
[1742627581833,5.02386,1990.5,1990.3,0.39600697]
[1742627585030,5.02411,1990.4,1990.3,0.39600697]
[1742627585658,5.02411,1990.4,1990.1,3.07949805]
[1742627585862,5.02411,1990.4,1990.3,0.39600697]
[1742627586069,5.02411,1990.4,1990.2,0.39622755]
[1742627586263,5.02411,1990.4,1990.1,3.88995886]
[1742627586475,5.02386,1990.5,1990.2,0.39622755]
[1742627586969,5.02386,1990.5,1990.3,0.39600697]
[1742627587136,5.02386,1990.5,1990.1,8.10430805]
[1742627587342,5.02386,1990.5,1990.4,0.39578642]
[1742627587752,5.02416,1990.4,1990.1,3.07949805]
[1742627587956,5.02386,1990.5,1990.4,0.39578642]
[1742627588145,5.02386,1990.5,1990.1,8.10426805]
[1742627588340,5.02386,1990.5,1990.4,0.39578642]
[1742627588556,5.02386,1990.5,1990.1,8.10426805]
[1742627588755,5.02361,1990.6,1990.4,0.39578642]
[1742627588954,5.02361,1990.6,1990.2,7.32757805]
[1742627589133,13.04734,1990.6,1990.5,0.39556588]
[1742627589739,5.02361,1990.6,1990.5,0.39556588]
[1742627590139,5.02361,1990.6,1990.2,7.32757805]
[1742627590338,5.02391,1990.5,1990.3,0.73275781]
[1742627590571,5.02391,1990.5,1990.3,0.39600697]
[1742627590949,5.02391,1990.5,1990.1,13.12901805]
[1742627591153,5.02391,1990.5,1990.4,0.39519442]
[1742627591360,5.02391,1990.5,1990.1,8.10421805]
[1742627591550,5.02391,1990.5,1990.4,0.39519442]
[1742627591973,5.02391,1990.5,1990.2,2.30299805]
[1742627592267,5.02391,1990.5,1990.4,0.39519442]
[1742627592470,5.02391,1990.5,1990.3,0.39541497]
[1742627592662,5.02391,1990.5,1990.2,2.30299805]
[1742627592663,5.02391,1990.5,1990.4,0.39519442]
[1742627593173,5.02391,1990.5,1990.2,2.30299805]
[1742627593362,5.02391,1990.5,1990.4,0.39519442]
[1742627593538,5.02391,1990.5,1990.3,0.39541497]
[1742627593742,5.02391,1990.5,1990.2,2.30299805]
[1742627593942,5.02391,1990.5,1990.4,0.39519442]
[1742627594240,5.02391,1990.5,1990.2,2.30299805]
[1742627594572,5.02391,1990.5,1990.4,0.39519442]
[1742627594774,5.02391,1990.5,1990.2,2.30299805]
[1742627594977,5.02391,1990.5,1990.4,0.39519442]
[1742627595139,6.028662,1990.5,1990.1,8.10419805]
[1742627595345,5.02447,1990.3,1989.9,32.3492]
[1742627595562,5.02447,1990.3,1990.2,0.36270268]
[1742627595779,5.02447,1990.3,1990.0,2.30299805]
[1742627596747,5.02447,1990.3,1990.1,0.36217188]
[1742627607013,5.82159,1990.5,1990.1,0.36217188]
[1742627607213,5.02413,1990.4,1990.1,0.36217188]
[1742627607380,5.02413,1990.4,1990.1,2.66516993]
[1742627607577,5.02413,1990.4,1990.1,3.44276993]
[1742627609207,10.04843,1990.4,1990.1,1.13977188]
[1742627610779,10.04843,1990.4,1990.1,0.36217188]
[1742627610986,11.21428888,1990.4,1990.1,0.36217188]
[1742627611728,11.21427888,1990.4,1990.1,0.36217188]
[1742627614646,5.02439,1990.3,1990.1,0.36217188]
[1742627625424,5.02439,1990.3,1990.0,5.02511]
[1742627625645,5.02439,1990.3,1990.2,0.36240661]
[1742627625847,6.14582689,1990.3,1990.1,0.36262721]
[1742627626047,5.02439,1990.3,1990.2,0.36240661]
[1742627626491,5.02439,1990.3,1989.9,17.74705805]
[1742627626647,5.02439,1990.3,1990.2,0.36240661]
[1742627627208,5.02439,1990.3,1990.0,5.02507]
[1742627627380,5.02439,1990.3,1990.2,0.36240661]
[1742627627693,5.02439,1990.3,1990.0,5.02507]
[1742627628065,5.02439,1990.3,1990.1,0.36262721]
[1742627628609,5.80983,1990.3,1990.1,0.36262721]
[1742627628902,5.80983,1990.3,1989.9,12.72180805]
[1742627629109,5.80983,1990.3,1990.2,0.36249769]
[1742627630108,5.80983,1990.3,1989.9,12.72180805]
[1742627630414,5.80983,1990.3,1989.8,5.3942]
[1742627630415,5.02491,1990.1,1989.8,5.3942]
[1742627630915,5.02463,1990.2,1989.9,0.36309125]
[1742627631390,5.02463,1990.2,1989.8,12.72265805]
[1742627631584,5.02487,1990.1,1990.0,0.3628706]
[1742627631794,6.81522,1990.1,1989.7,38.51075805]
[1742627631996,5.81027,1990.1,1989.8,2.30299805]
[1742627632199,5.81027,1990.1,1989.8,2.66630996]
[1742627635710,5.81027,1990.1,1989.8,0.36331191]
[1742627635863,10.83533,1990.1,1989.8,0.36331191]
[1742627636263,10.83533,1990.1,1989.8,2.66630996]
[1742627638201,10.83532,1990.1,1989.8,2.66630996]
[1742627638497,5.02512,1990.0,1989.8,2.66630996]
[1742627639568,5.02537,1989.9,1989.8,0.36331191]
[1742627640370,5.02512,1990.0,1989.8,0.36331191]
[1742627641970,10.05045,1990.0,1989.8,0.36331191]
[1742627642170,5.02512,1990.0,1989.8,0.36331191]
[1742627643108,5.02537,1989.9,1989.8,0.36331191]
[1742627643293,9.14531705,1989.9,1989.8,0.36331191]
[1742627643774,9.69531705,1989.9,1989.8,0.36331191]
[1742627644520,1.816949,1989.9,1989.8,0.36331191]
[1742627644691,5.02537,1989.9,1989.8,0.36331191]
[1742627647710,5.02512,1990.0,1989.8,0.36331191]
[1742627648090,6.1,1990.1,1989.8,2.66630996]
[1742627648406,11.1249,1990.1,1989.8,3.48850996]
[1742627650171,11.1249,1990.1,1989.8,8.51413996]
[1742627651397,6.1,1990.1,1989.9,5.02513]
[1742627651597,6.1,1990.1,1989.9,7.32812805]
[1742627651838,6.1,1990.1,1990.0,0.36414585]
[1742627652319,6.1,1990.1,1990.0,7.6922639]
[1742627652902,0.7948,1990.5,1990.1,5.02466]
[1742627653131,0.7948,1990.5,1990.1,7.32762805]
[1742627653132,5.02412,1990.4,1990.1,7.32762805]
[1742627653330,5.02412,1990.4,1990.2,0.36336302]
[1742627653530,5.02412,1990.4,1990.1,2.30299805]
[1742627653703,5.02412,1990.4,1990.2,0.36336302]
[1742627653910,5.02412,1990.4,1990.1,2.30299805]
[1742627654108,5.02412,1990.4,1990.2,0.36336302]
[1742627654297,5.02412,1990.4,1990.1,2.30299805]
[1742627654493,5.02412,1990.4,1990.2,0.36336302]
[1742627654731,5.02412,1990.4,1990.1,2.30299805]
[1742627655029,5.02412,1990.4,1990.2,0.36336302]
[1742627655335,5.02412,1990.4,1990.1,2.30299805]
[1742627655629,5.81889,1990.5,1990.2,2.66636107]
[1742627655630,5.81874,1990.5,1990.2,2.66636107]
[1742627655836,5.02394,1990.5,1990.2,2.66636107]
[1742627656138,5.02394,1990.5,1990.2,5.38797302]
[1742627656298,5.02394,1990.5,1990.2,0.36336302]
[1742627656636,10.04799,1990.5,1990.1,8.64531185]
[1742627656795,10.04799,1990.5,1990.3,0.36314245]
[1742627656999,5.02394,1990.5,1990.2,0.36336302]
[1742627657199,5.02394,1990.5,1990.4,0.36292189]
[1742627657412,5.02394,1990.5,1990.3,0.36314245]
[1742627657615,5.02394,1990.5,1990.4,0.36292189]
[1742627658002,8.12141805,1990.6,1990.1,7.32779805]
[1742627658003,3.09779805,1990.6,1990.1,2.30299805]
[1742627658204,5.0242,1990.4,1990.1,0.81502981]
[1742627658830,5.0242,1990.4,1990.1,3.11802786]
[1742627659034,5.0242,1990.4,1990.2,0.36336302]
[1742627659912,5.0242,1990.4,1990.1,3.11802786]
[1742627660097,5.0242,1990.4,1990.2,0.36336302]
[1742627660295,5.0242,1990.4,1990.1,3.11802786]
[1742627660528,5.0242,1990.4,1990.2,0.36336302]
[1742627660736,5.0242,1990.4,1990.1,2.30299805]
[1742627661054,5.0242,1990.4,1990.2,0.36336302]
[1742627661194,5.02436,1990.3,1990.2,0.36336302]
[1742627661398,5.02436,1990.3,1990.1,2.30299805]
[1742627661599,5.02436,1990.3,1990.2,0.36336302]
[1742627662001,5.02436,1990.3,1990.0,8.15014805]
[1742627662202,5.02436,1990.3,1990.2,0.36336302]
[1742627662401,5.02436,1990.3,1990.1,2.30299805]
[1742627662402,5.02419,1990.4,1990.1,2.66658167]
[1742627662631,5.02419,1990.4,1990.2,0.36336302]
[1742627663010,5.02419,1990.4,1990.1,2.30299805]
[1742627663229,5.02419,1990.4,1990.3,0.36314245]
[1742627663551,5.02419,1990.4,1990.3,0.36250486]
[1742627663750,5.02419,1990.4,1990.1,2.30299805]
[1742627663751,6.11021378,1990.4,1990.1,2.30299805]
[1742627663929,6.11021378,1990.4,1990.2,0.36272544]
[1742627664130,11.13453378,1990.4,1990.1,2.30299805]
[1742627664337,11.13453378,1990.4,1990.2,0.36272544]
[1742627664536,11.13453378,1990.4,1990.1,2.30299805]
[1742627664854,5.02436,1990.3,1990.2,0.36272544]
[1742627665260,5.02436,1990.3,1990.0,3.12519805]
[1742627665556,5.02436,1990.3,1990.1,0.36294604]
[1742627668945,10.04886,1990.3,1990.1,0.36294604]
[1742627669146,5.02436,1990.3,1990.1,0.36294604]
[1742627670076,5.02462,1990.2,1990.1,0.36294604]
[1742627670428,5.02462,1990.2,1989.9,6.91799805]
[1742627670772,5.02462,1990.2,1990.0,0.3327277]
[1742627683500,5.02448,1990.3,1990.0,2.63572575]
[1742627688899,5.02448,1990.3,1990.0,0.3327277]
[1742627689433,6.111182,1990.3,1990.0,0.3327277]
[1742627689702,11.135762,1990.3,1990.0,0.3327277]
[1742627689906,6.111182,1990.3,1990.0,0.3327277]
[1742627690801,11.135732,1990.3,1990.0,0.3327277]
[1742627691011,6.111182,1990.3,1990.0,0.3327277]
[1742627692368,5.02448,1990.3,1990.0,0.3327277]
[1742627694808,10.04902,1990.3,1990.0,0.3327277]
[1742627695921,5.02448,1990.3,1990.0,0.3327277]
[1742627699509,5.02464,1990.2,1990.0,0.3327277]
[1742627699873,10.04905,1990.3,1990.0,0.3327277]
[1742627700074,11.135795,1990.3,1990.0,0.3327277]
[1742627700274,6.111225,1990.3,1990.0,0.3327277]
[1742627700591,8.07906805,1990.1,1990.0,0.3327277]
[1742627700793,5.02524,1990.0,1989.8,26.568]
[1742627700999,5.02524,1990.0,1989.9,0.3332198]